Cogmind - Beta 13 X1 @@@ ROGUE MODE // 2023.12.04 @ 19:02:20 Player: Plexion Result: Destroyed by as-25852 with Assembled Maul Performance ------------- Evolutions (0) 0 Regions Visited (2) 400 Robots Destroyed (13) 65 Value Destroyed (252) 252 Prototype IDs (0) 0 Alien Tech Used (0) 0 Bonus (0) 0 TOTAL SCORE: 717 Bonus ------- None Cogmind --------- Core Integrity 0/250 Matter 300/300 Energy 99/100 System Corruption 0% Temperature Cool (75) Movement Core (750) Ox14 Location -10/Mines Parts ------- > --- POWER (1) -------- (None) > --- PROPULSION (2) --- (None) > --- UTILITY (2) ------ High-capacity Storage Unit > --- WEAPON (2) ------- Medium Laser Light Assault Rifle > --- INVENTORY (20) --- Ion Engine Compact Wheel Small Storage Unit Small Laser Peak State ------------ > --- POWER ------------ Ion Engine > --- PROPULSION ------- Light Treads Light Treads > --- UTILITY ---------- Small Storage Unit High-capacity Storage Unit > --- WEAPON ----------- Small Laser Assault Rifle > --- INVENTORY -------- Ion Engine Wheel Compact Wheel Medium Laser [Rating: 7] Favorites ----------- Power Ion Engine Engine Ion Engine Propulsion Light Treads Treads Light Treads Wheel Wheel Utility High-capacity Storage Unit Storage High-capacity Storage Unit Weapon Small Laser Energy Gun Small Laser Ballistic Gun Light Assault Rifle Build | -11 -10 -10 ------- Run | Jun Mat Min Slots Evolved . | . . . Power . | . . . Propulsion . | . . . Utility . | . . . Weapon . | . . . Parts Attached 16 | 6 6 4 Power 1 | 1 . . Engine 1 | 1 . . Core . | . . . Reactor . | . . . Propulsion 7 | 2 4 1 Treads 4 | 2 2 . Leg . | . . . Wheel 3 | . 2 1 Hover . | . . . Flight . | . . . Utility 2 | 1 1 . Device . | . . . Storage 2 | 1 1 . Processor . | . . . Hackware . | . . . Protection . | . . . Artifact . | . . . Weapon 6 | 2 1 3 Energy Gun 3 | 1 1 1 Energy Cannon . | . . . Ballistic Gun 3 | 1 . 2 Ballistic Cannon . | . . . Launcher . | . . . Special Weapon . | . . . Impact Weapon . | . . . Slashing Weapon . | . . . Piercing Weapon . | . . . Special Melee Weapon . | . . . Unidentified Prototypes . | . . . Parts Lost 6 | . 1 5 Power 1 | . . 1 Propulsion 3 | . . 3 Utility . | . . . Weapon 2 | . 1 1 Highest Loss Streak 3 | . 1 3 To Critical Strikes . | . . . Average Slot Usage (%) 84 | . 85 82 Engine 13 | . 14 13 Treads 20 | . 21 18 Wheel 7 | . 6 7 Storage 14 | . 14 14 Energy Gun 19 | . 22 14 Ballistic Gun 8 | . 5 13 Naked Turns . | . . . Heaviest Build 53 | 13 53 48 Greatest Support 40 | 40 40 40 Greatest Overweight (x) 4 | . 1 4 Average Overweight (x) 1 | . . 3 Largest Inventory Capacity 20 | 8 20 20 Average Capacity 17 | 7 17 20 Most Carried 6 | 4 5 6 Average Carried 4 | 2 4 4 Final Capacity 20 | 8 20 20 Final Carried 4 | 4 4 4 Class Distribution -------------------- 100% | Mutant Dominant Class ---------------- Mutant | -10/Materials Mutant | -10/Mines Resources | -11 -10 -10 ----------- Run | Jun Mat Min Matter Collected 413 | 205 113 95 Remotely . | . . . Salvage Created 311 | . 171 140 Parts 28 | . 17 11 Haulers Intercepted . | . . . Recyclers Shooed 2 | . 1 1 Parts Field Recycled . | . . . Retrieved Matter . | . . . Parts Self-Destructed . | . . . Prevented . | . . . Kills | -11 -10 -10 ------- Run | Jun Mat Min Combat Hostiles Destroyed 14 | . 8 6 Guns 14 | . 8 6 Classes Destroyed 3 | . 2 1 Swarmer 9 | . 6 3 Grunt 4 | . 2 2 Assembled 1 | . . 1 Best Kill Streak 3 | . 3 3 Combat Bots Only 3 | . 3 3 Max Kills in Single Turn 2 | . 1 2 Gunslinging 1 | . . 1 Exploded . | . . . Melee . | . . . Uniques/NPCs Destroyed . | . . . Combat | -11 -10 -10 -------- Run | Jun Mat Min Damage Taken 966 | . 444 522 Core 264 | . 102 162 Absorbed by Shields . | . . . Core Remaining (%) 100 | 100 . . Volleys Fired 56 | . 28 28 Largest 2 | . 2 2 Hottest 90 | . 90 90 Shots Fired 108 | . 55 53 Gun 108 | . 55 53 Cannon . | . . . Launcher . | . . . Special . | . . . Kinetic 48 | . 19 29 Thermal 60 | . 36 24 Explosive . | . . . Electromagnetic . | . . . Robot Hit Streak 9 | . 9 6 Robot Miss Streak 4 | . 4 4 Penetration Max . | . . . Secondary Targets 2 | . 1 1 Max Gunslinging Chain 1 | . 1 1 Shots Hit Robots 63 | . 28 35 Core Hits 27 | . 11 16 Critical Kills . | . . . Critical Parts Destroyed 1 | . . 1 Critical Strikes 2 | . . 2 Burn 1 | . . 1 Destroy 1 | . . 1 Melee Attacks . | . . . Impact . | . . . Slashing . | . . . Piercing . | . . . Sneak Attacks . | . . . Combat Hostiles . | . . . Follow-up Attacks . | . . . Damage Inflicted 726 | 3 354 369 Guns 718 | . 349 369 Cannons . | . . . Explosions . | . . . Melee . | . . . Ramming 8 | 3 5 . Kinetic 309 | . 121 188 Thermal 409 | . 228 181 Explosive . | . . . Electromagnetic . | . . . Impact . | . . . Slashing . | . . . Piercing . | . . . Highest Corruption . | . . . Average Corruption . | . . . Corruption Purged . | . . . Corruption Blocked . | . . . Overload Shots . | . . . Overflow Damage . | . . . Projectiles . | . . . Explosions . | . . . Melee . | . . . Knockbacks . | . . . Impact . | . . . Kinetic . | . . . Secondary . | . . . Self-Inflicted Damage . | . . . Shots . | . . . Rammed 5 | 2 3 . Targets Rammed 5 | 2 3 . Kicked . | . . . Crushed . | . . . Highest Temperature 234 | . 234 120 Average Temperature 60 | . 90 42 Received Heat Transfer 248 | . 84 164 Siege Activations . | . . . Robots Corrupted . | . . . Combat Hostiles . | . . . Parts Fried . | . . . Impact Corruptions . | . . . Robots Melted . | . . . Combat Hostiles . | . . . Parts Melted 2 | . 1 1 Heat Transferred 1104 | . 548 556 Parts Sabotaged . | . . . Parts Stolen . | . . . Parts Stripped . | . . . Power Chain Reactions . | . . . Missiles Intercepted . | . . . Alert | -11 -10 -10 ------- Run | Jun Mat Min Peak Influence 202 | . 202 132 Initial 32 | . . 32 Average 94 | . 107 105 Maximum Alert Level 1 | . 1 . Low Security (%) 85 | 100 69 100 Level 1 14 | . 30 . Level 2 . | . . . Level 3 . | . . . Level 4 . | . . . Level 5 . | . . . High Security . | . . . Max Security . | . . . Squads Dispatched 3 | . 3 . Investigation 2 | . 2 . Extermination . | . . . Reinforcement 1 | . 1 . Assault . | . . . Garrison . | . . . Intercept . | . . . Searches Triggered . | . . . Construction Impeded . | . . . Haulers Reinforced . | . . . Active Scanning Responses . | . . . Cargo Convoy Interrupts . | . . . Stealth | -11 -10 -10 --------- Run | Jun Mat Min Distress Signals 1 | . 1 . Communications Jammed . | . . . Distress Signals . | . . . Times Spotted 24 | . 15 9 Peak Tracking Total 4 | . 4 4 Tactical Retreats . | . . . Traps | -11 -10 -10 ------- Run | Jun Mat Min Traps Triggered . | . . . Indirectly . | . . . Trap Hack Attempts . | . . . Triggered . | . . . Disarmed . | . . . Reprogrammed . | . . . Reused . | . . . Traps Extracted . | . . . Installed . | . . . Triggered . | . . . Machines | -11 -10 -10 ---------- Run | Jun Mat Min Machines Disabled . | . . . Max in Single Turn . | . . . Machines Repaired . | . . . Machines Sabotaged . | . . . Overloaded Fab Kills . | . . . Hacking | -11 -10 -10 --------- Run | Jun Mat Min Machines Accessed 6 | . 6 . Terminals 4 | . 4 . Fabricators . | . . . Repair Stations . | . . . Recycling Units 2 | . 2 . Scanalyzers . | . . . Garrison Access . | . . . Total Hacks 17 | . 17 . Successful 8 | . 8 . Failed 9 | . 9 . Catastrophic . | . . . Database Lockouts . | . . . Manual 17 | . 17 . Terminals 14 | . 14 . Fabricators . | . . . Repair Stations . | . . . Recycling Units 3 | . 3 . Scanalyzers . | . . . Garrison Access . | . . . Terminal Hacks 6 | . 6 . Robot Analysis 2 | . 2 . Locate Traps 1 | . 1 . Investigation Status 1 | . 1 . Reinforcement Status 1 | . 1 . Zone Layout 1 | . 1 . Fabricator Hacks . | . . . Repair Station Hacks . | . . . Recycling Unit Hacks . | . . . Scanalyzer . | . . . Garrison Access Hacks . | . . . Unauthorized Hacks 2 | . 2 . Terminals . | . . . Fabricators . | . . . Repair Stations . | . . . Recycling Units 2 | . 2 . Tunnel 2 | . 2 . Scanalyzers . | . . . Garrison Access . | . . . Data Cores Recovered . | . . . Used . | . . . Hacking Detections 3 | . 3 . Full Trace Events . | . . . Feedback Events . | . . . Feedback Blocked . | . . . Robot Schematics Acquired . | . . . Robots Built . | . . . Authchips . | . . . Time . | . . . Total Robot Build Rating . | . . . Part Schematics Acquired . | . . . Parts Built . | . . . Authchips . | . . . Time . | . . . Total Part Build Rating . | . . . Parts Repaired . | . . . Time . | . . . Parts Recycled . | . . . Recycled Matter . | . . . Retrieved Matter . | . . . Retrieved Components . | . . . Parts Scanalyzed . | . . . Part Schematics Acquired . | . . . Parts Damaged . | . . . Bothacking | -11 -10 -10 ------------ Run | Jun Mat Min Used RIF Installer . | . . . Robots Hacked . | . . . Non-combat . | . . . Combat . | . . . Robot Hacks Applied . | . . . Relay Couplers Released . | . . . Fabnet Peak Effective % . | . . . Robots Rewired . | . . . Allies Hacked . | . . . Hacks Repelled . | . . . Allies | -11 -10 -10 -------- Run | Jun Mat Min Total Allies 2 | . . 2 Largest Group 2 | . . 2 Highest-Rated Group 38 | . . 38 Highest-Rated Ally 31 | . . 31 Total Orders . | . . . Ally Attacks 4 | . . 4 Total Damage 64 | . . 64 Kills 3 | . . 3 Allies Corrupted . | . . . Allies Melted . | . . . Intel | -11 -10 -10 ------- Run | Jun Mat Min Robot Analysis Total 2 | . 2 . Derelict Logs Recovered 1 | . . 1 Drone Launches . | . . . Drone Recoveries . | . . . Exploration | -11 -10 -10 ------------- Run | Jun Mat Min Turns Passed 1109 | 130 551 428 Spaces Moved 528 | 74 272 182 Core 3 | 3 . . Treads 279 | 71 152 56 Legs . | . . . Wheels 246 | . 120 126 Hover . | . . . Flight . | . . . Fastest Speed 50 | 50 105 140 Average Speed 166 | 155 166 170 Slowest Speed 240 | 160 240 240 Overloaded Moves . | . . . Propulsion Burnouts . | . . . Robots Hopped . | . . . Cave-ins Triggered . | . . . Exploration Rate (%) 40 | 5 70 46 Regions Visited 2 Branch Regions 1 Pre-discovered Areas 2 | . 2 . Known Exits Taken . | . . . Unknown Exits Taken 2 | 1 1 . Scrap Searched . | . . . Spaces Dug . | . . . Terrain Destroyed . | . . . Melee . | . . . Projectile . | . . . AOE . | . . . Terrain Rammed . | . . . Walls Destroyed . | . . . Machines Disabled . | . . . Actions | -11 -10 -10 --------- Run | Jun Mat Min Total 647 | 85 311 251 Wait 37 | . 2 35 Move 526 | 73 271 182 Hop . | . . . Pick Up 6 | 4 . 2 Fast Attach 7 | 6 1 . Attach 3 | . 1 2 Detach 1 | . 1 . Swap 6 | . 4 2 Drop . | . . . Fire 56 | . 28 28 Melee . | . . . Ram . | . . . Kick . | . . . Crush 5 | 2 3 . Escape Stasis . | . . . Rewire . | . . . Trap . | . . . Miscellaneous . | . . . Route ------- -11/Junkyard -10/Materials (discovered 3 exits: [*Mat] / [*Min x2]) -10/Mines (discovered 2 exits: [*Mat x2]) History --------- Turn | Location | Event 33 | -11/Junkyard | Discovered new exit (range 15) 131 | -11/Junkyard | Entered Materials 318 | -10/Materials | Build established: Mutant 416 | -10/Materials | Discovered new exit (range 10) 612 | -10/Materials | Discovered new exit (range 14) 633 | -10/Materials | Discovered new exit (range 14) 682 | -10/Materials | Entered Mines 696 | -10/Mines | Met a Derelict bent on vengeance 735 | -10/Mines | Discovered new exit (range 10) 789 | -10/Mines | Discovered new exit (range 5) 859 | -10/Mines | Core integrity fell below 50% 1006 | -10/Mines | Learned Materials emergency access door positions 1013 | -10/Mines | Assembled infested the area 1102 | -10/Mines | Core integrity fell below 20% 1110 | -10/Mines | Destroyed by as-25852 with Assembled Maul Last Messages --------------- Data stored: Materials emergency access points. 01013_ ALERT: Infestation in the mines, dispatching Demolisher response squad. 01035_ K-01 Serf destroyed. 01065_ as-81847 destroyed. 01069_ TS-RLJ(g) destroyed. 01071_ as-18285 suffers critical hit (Destroy). 01071_ Destroyed Asb. Hover Unit. 01074_ as-18285 destroyed. 01078_ Acquired 17 matter. 01092_ Acquired 1 matter. 01096_ Destroyed Asb. F-torch. 01096_ as-29239 suffers critical hit (Burn). 01097_ Acquired 1 matter. 01099_ Ion Engine destroyed. 01099_ as-29239 destroyed. 01104_ The unstable cave ceiling collapses. 01105_ Lgt. Treads destroyed. 01106_ The unstable cave ceiling collapses. 01109_ Wheel destroyed. Map ----- +----------------------------------------------------+ | | | | | ?????????????????????????????????????????????????? | | ?????????????????????????????????????????????????? | | ?????????????????????????????????????????????????? | | ???????????????????????####??????????????????????? | | ??????????????????????## ##????????????????????? | | ??????????????????????# #????????????????????? | | ??????????????????????# #????????????????????? | | ??????????????????????# ######???????????????? | | ??????????????????????# ## #???????????????? | | ??????????????????????## #???????????????? | | ???????????????????????#### ##??????????????? | | ??????????????????????????## ################ | | ?????????????###???????????## # | | ?????????? ?## ???????????## ########## # | | ??????????? # ????????????# ##????????# # | | ???????????? ???????????# ##?????????# # | | ?????????????# ???????????# ##??????????# # | | ??????????????# |?????????## #???????????# # | | ???????????????# =%???####### #???????????# # | | ????????????????# ! ?## # ##???????????# # | | ????????????????# # #????????????# # | | ?????????????????# # ##?####?####??# # | | ????????????????## ####?## ## ##?# | | ????????????????# a a@ #?### ### | | ??????????????# ### ##### | | ?????????????# ### ##? | | ?????????????#!% ## ## ## | | ?????????????# #?### | | ?????????????# #????# ##### | | ?????????????## %????? #??## | | ??????????????# #???? #??# ## | | ?????????????## #??? #??# #### | | ?????? ### ### d##### #??? | | ?????? ## #### | | ?????? % ### = = = | | ?????? # ### #?# #### %= ### | | ???????# ###??? ## ????##### ##?? | | ???????## #### #??????? ?????????# ###??? | | ??????????????#### ???????? ?????????# #????? | | ?????????????????# ????????#### ???????# #????? | | ?????????????????# ????????????# ??????# ????? | | ?????????????????#?????????????? ?????# ???? | | ????????????????????????????????? ????#####???# | | ?????????????????????????????????? ?????????????? | | ?????????????????????????????????????????????????? | | ?????????????????????????????????????????????????? | | ?????????????????????????????????????????????????? | | ?????????????????????????????????????????????????? | +----------------------------------------------------+ Best States ------------- Heat Dissipation 25 Energy Generation 10 Energy Capacity 250 Matter Stores 300 Matter Capacity 300 Sight Range 16 Terrain Scan Density 10 Evasion (%) 40 Recoil Reduction 2 Item Schematics ----------------- None Robot Schematics ------------------ None Fabricated ------------ Nothing Alien Tech Used ----------------- None Achievements -------------- None Challenges ------------ None Game ------ Seed BombardmentDefenseBlaster Manual? 0 Play Time 00:07:44 Cumulative 525.6 hours Start 2023.12.04 @ 18:56:41 End 2023.12.04 @ 19:02:20 Sessions 1 Manual Loads 0 Difficulty Rogue Special Mode None Game No. 584 Rogue 497 Adventurer 87 Explorer 0 Win Type - Total 29 Types 8/0/16/1/1/0/3/0/0 Lore% 92 Gallery% 93 Achievement% 78 Wizard Run 0 Options --------- ASCII 0 Keyboard 1 Movement Numpad Keybinds 0 Fullscreen 1 Font 18/SmallcapsGlow Map View 76x50 Tactical HUD 1 Map Filters NONE Filters NONE Steam 1 RUN: e17abffa-65aa-40aa-8d8d-7bb6ce733fb6